[Event "Early-Titled-Tuesday-Blitz-November-28-2023"]
[Site "Chess.com"]
[Date "2023.11.28"]
[Round "1"]
[White "StellarChessPro"]
[Black "C_K_G"]
[Result "1-0"]
[WhiteElo "2552"]
[BlackElo "2157"]
[TimeControl "180+1"]
[EndTime "8:05:25 PST"]
[Termination "StellarChessPro won by checkmate"]

1. b3 {[%clk 0:03:00.9]} 1... d5 {[%clk 0:02:59.5]} 2. Bb2 {[%clk 0:03:00.5]}
2... e6 {[%clk 0:02:59.9]} 3. Nf3 {[%clk 0:03:00.7]} 3... Nf6 {[%clk 0:02:59.4]}
4. d3 {[%clk 0:03:00.9]} 4... c5 {[%clk 0:02:59.2]} 5. Nbd2 {[%clk 0:03:01.4]}
5... Nc6 {[%clk 0:02:59.2]} 6. g3 {[%clk 0:03:01.7]} 6... Bd6 {[%clk 0:02:59.1]}
7. Bg2 {[%clk 0:03:01.6]} 7... O-O {[%clk 0:02:58.9]} 8. O-O {[%clk 0:03:01.7]}
8... e5 {[%clk 0:02:58.7]} 9. e4 {[%clk 0:03:02.4]} 9... d4 {[%clk 0:02:58.6]}
10. Nh4 {[%clk 0:03:02.3]} 10... Re8 {[%clk 0:02:49.3]} 11. Nf5 {[%clk
0:03:02.2]} 11... Bxf5 {[%clk 0:02:48.6]} 12. exf5 {[%clk 0:03:03.1]} 12... Qd7
{[%clk 0:02:47.8]} 13. Ne4 {[%clk 0:03:02.4]} 13... Nxe4 {[%clk 0:02:47]} 14.
Bxe4 {[%clk 0:03:01.8]} 14... f6 {[%clk 0:02:46.6]} 15. a3 {[%clk 0:02:57.7]}
15... Rac8 {[%clk 0:02:46.2]} 16. Bd5+ {[%clk 0:02:53.7]} 16... Kh8 {[%clk
0:02:46.2]} 17. Be6 {[%clk 0:02:54.4]} 17... Rxe6 {[%clk 0:02:46.5]} 18. fxe6
{[%clk 0:02:55.3]} 18... Qxe6 {[%clk 0:02:46.8]} 19. Qf3 {[%clk 0:02:55.6]}
19... Rc7 {[%clk 0:02:45.4]} 20. Rae1 {[%clk 0:02:55.4]} 20... Ne7 {[%clk
0:02:45.1]} 21. Re2 {[%clk 0:02:54.9]} 21... Ng6 {[%clk 0:02:35.2]} 22. Rfe1
{[%clk 0:02:48.3]} 22... Qh3 {[%clk 0:02:20.9]} 23. Qg2 {[%clk 0:02:45.4]} 23...
Qh5 {[%clk 0:02:17.7]} 24. Bc1 {[%clk 0:02:35.3]} 24... f5 {[%clk 0:02:16]} 25.
Qd5 {[%clk 0:02:31.8]} 25... Rc6 {[%clk 0:02:12.6]} 26. f4 {[%clk 0:02:26.4]}
26... exf4 {[%clk 0:01:42.5]} 27. Qxd6 {[%clk 0:02:18.6]} 27... h6 {[%clk
0:01:37.6]} 28. Re8+ {[%clk 0:02:14.3]} 28... Kh7 {[%clk 0:01:37.9]} 29. Qd5
{[%clk 0:02:12.8]} 29... Ne5 {[%clk 0:01:08.3]} 30. Qg8+ {[%clk 0:02:06.2]}
30... Kg6 {[%clk 0:01:07.9]} 31. R1xe5 {[%clk 0:02:01.2]} 31... Qd1+ {[%clk
0:00:48.6]} 32. Re1 {[%clk 0:01:59.9]} 32... Qxc2 {[%clk 0:00:45.3]} 33. R8e6+
{[%clk 0:01:54.8]} 33... Rxe6 {[%clk 0:00:41.8]} 34. Qxe6+ {[%clk 0:01:51.8]}
34... Kg5 {[%clk 0:00:37.1]} 35. Bxf4+ {[%clk 0:01:48.7]} 35... Kg4 {[%clk
0:00:32.4]} 36. Qg6+ {[%clk 0:01:39.8]} 36... Kf3 {[%clk 0:00:29.2]} 37. Qh5#
{[%clk 0:01:39.9]} 1-0

[Event "Early-Titled-Tuesday-Blitz-November-28-2023"]
[Site "Chess.com"]
[Date "2023.11.28"]
[Round "1"]
[White "GMBenjaminBok"]
[Black "GameOverBro"]
[Result "1-0"]
[WhiteElo "3027"]
[BlackElo "2516"]
[TimeControl "180+1"]
[EndTime "8:05:27 PST"]
[Termination "GMBenjaminBok won by resignation"]

1. d4 {[%clk 0:03:00.9]} 1... d6 {[%clk 0:02:59.7]} 2. Nf3 {[%clk 0:03:00]} 2...
Nf6 {[%clk 0:03:00]} 3. c4 {[%clk 0:03:00.1]} 3... Nbd7 {[%clk 0:03:00.5]} 4.
Nc3 {[%clk 0:02:59.8]} 4... e5 {[%clk 0:03:00.8]} 5. g3 {[%clk 0:03:00.2]} 5...
Be7 {[%clk 0:03:00.9]} 6. Bg2 {[%clk 0:03:00.5]} 6... c6 {[%clk 0:03:01.4]} 7.
Qc2 {[%clk 0:03:00.6]} 7... O-O {[%clk 0:03:01.7]} 8. O-O {[%clk 0:03:00.5]}
8... Re8 {[%clk 0:03:01.5]} 9. Rd1 {[%clk 0:02:59.1]} 9... Qc7 {[%clk
0:03:01.9]} 10. b3 {[%clk 0:02:59]} 10... a5 {[%clk 0:03:02]} 11. Bb2 {[%clk
0:02:58.9]} 11... Bf8 {[%clk 0:03:02.4]} 12. dxe5 {[%clk 0:02:49.9]} 12... dxe5
{[%clk 0:03:02]} 13. Ng5 {[%clk 0:02:47.1]} 13... Nc5 {[%clk 0:03:01.2]} 14.
Nce4 {[%clk 0:02:30.5]} 14... Nfxe4 {[%clk 0:02:53.3]} 15. Nxe4 {[%clk
0:02:31.4]} 15... f5 {[%clk 0:02:42.5]} 16. Nxc5 {[%clk 0:02:21.3]} 16... Bxc5
{[%clk 0:02:43.4]} 17. e3 {[%clk 0:02:17.6]} 17... Be6 {[%clk 0:02:38.6]} 18.
Bh3 {[%clk 0:02:10.6]} 18... g6 {[%clk 0:02:38.1]} 19. Qc3 {[%clk 0:02:07.4]}
19... Bf7 {[%clk 0:02:35]} 20. a3 {[%clk 0:02:07]} 20... Rad8 {[%clk 0:02:30]}
21. Bf1 {[%clk 0:01:57]} 21... Bf8 {[%clk 0:02:19.1]} 22. Rxd8 {[%clk
0:01:44.8]} 22... Qxd8 {[%clk 0:02:18.2]} 23. Be2 {[%clk 0:01:44.2]} 23... Qc7
{[%clk 0:02:15.3]} 24. Rd1 {[%clk 0:01:43.5]} 24... Bg7 {[%clk 0:02:14]} 25. Qd2
{[%clk 0:01:33.9]} 25... Be6 {[%clk 0:02:09.9]} 26. Bc3 {[%clk 0:01:29.1]} 26...
b6 {[%clk 0:01:58.3]} 27. Qd6 {[%clk 0:01:28.9]} 27... Qc8 {[%clk 0:01:29.5]}
28. Bxe5 {[%clk 0:01:24.5]} 28... Bf8 {[%clk 0:01:29]} 29. Qd4 {[%clk 0:01:11]}
29... Bxa3 {[%clk 0:01:14.9]} 30. Qxb6 {[%clk 0:01:08.7]} 30... Be7 {[%clk
0:01:12.8]} 31. Qxa5 {[%clk 0:01:04.9]} 31... Kf7 {[%clk 0:01:09.9]} 32. Bb2
{[%clk 0:01:00.5]} 32... Qb7 {[%clk 0:01:08.7]} 33. Qc3 {[%clk 0:00:59.9]} 33...
Rg8 {[%clk 0:01:08.8]} 34. Bf3 {[%clk 0:00:57.1]} 34... Bb4 {[%clk 0:01:08.7]}
35. Qf6+ {[%clk 0:00:56.1]} 1-0

[Event "Early-Titled-Tuesday-Blitz-November-28-2023"]
[Site "Chess.com"]
[Date "2023.11.28"]
[Round "1"]
[White "MatthewG-p4p"]
[Black "TheoSlade"]
[Result "1-0"]
[WhiteElo "2944"]
[BlackElo "2503"]
[TimeControl "180+1"]
[EndTime "8:05:40 PST"]
[Termination "MatthewG-p4p won by checkmate"]

1. e4 {[%clk 0:03:00.1]} 1... e5 {[%clk 0:03:00.4]} 2. Nf3 {[%clk 0:02:59.6]}
2... Nc6 {[%clk 0:03:01.1]} 3. d4 {[%clk 0:02:59.1]} 3... exd4 {[%clk
0:03:01.3]} 4. c3 {[%clk 0:02:59.3]} 4... dxc3 {[%clk 0:03:01]} 5. Nxc3 {[%clk
0:03:00.2]} 5... Bc5 {[%clk 0:02:56.1]} 6. Bc4 {[%clk 0:02:56.9]} 6... d6 {[%clk
0:02:55]} 7. Qb3 {[%clk 0:02:56]} 7... Qe7 {[%clk 0:02:49.6]} 8. O-O {[%clk
0:02:48.5]} 8... Nf6 {[%clk 0:02:45.2]} 9. Bg5 {[%clk 0:02:28]} 9... Nd4 {[%clk
0:02:31.6]} 10. Nxd4 {[%clk 0:02:18.7]} 10... Bxd4 {[%clk 0:02:32.5]} 11. Nd5
{[%clk 0:02:19.2]} 11... Qd8 {[%clk 0:02:29.8]} 12. Rad1 {[%clk 0:02:00.2]}
12... Be5 {[%clk 0:02:25.1]} 13. f4 {[%clk 0:01:59.7]} 13... c6 {[%clk
0:01:58.2]} 14. fxe5 {[%clk 0:01:53.1]} 14... cxd5 {[%clk 0:01:57.5]} 15. Bb5+
{[%clk 0:01:34.1]} 15... Bd7 {[%clk 0:01:46.9]} 16. Bxd7+ {[%clk 0:01:31.5]}
16... Qxd7 {[%clk 0:01:42.7]} 17. exf6 {[%clk 0:01:31.6]} 17... dxe4 {[%clk
0:01:34.3]} 18. fxg7 {[%clk 0:01:27]} 18... Rg8 {[%clk 0:01:34.4]} 19. Bf6
{[%clk 0:01:24]} 19... Rc8 {[%clk 0:01:19.7]} 20. Qd5 {[%clk 0:01:16.8]} 20...
e3 {[%clk 0:00:58.7]} 21. Rd4 {[%clk 0:00:57.2]} 21... Rc5 {[%clk 0:00:29.9]}
22. Re4+ {[%clk 0:00:54.8]} 22... Qe6 {[%clk 0:00:28.5]} 23. Rxe6+ {[%clk
0:00:55.1]} 23... fxe6 {[%clk 0:00:26.2]} 24. Qxe6# {[%clk 0:00:55.3]} 1-0

[Event "Early-Titled-Tuesday-Blitz-November-28-2023"]
[Site "Chess.com"]
[Date "2023.11.28"]
[Round "1"]
[White "lluiss"]
[Black "mbachez"]
[Result "0-1"]
[WhiteElo "2210"]
[BlackElo "2570"]
[TimeControl "180+1"]
[EndTime "8:05:40 PST"]
[Termination "mbachez won by resignation"]

1. Nf3 {[%clk 0:03:00.9]} 1... Nf6 {[%clk 0:02:45.7]} 2. d4 {[%clk 0:02:59.9]}
2... d5 {[%clk 0:02:44.1]} 3. c4 {[%clk 0:02:59]} 3... c6 {[%clk 0:02:43.3]} 4.
cxd5 {[%clk 0:02:58.3]} 4... cxd5 {[%clk 0:02:41.2]} 5. Nc3 {[%clk 0:02:58.2]}
5... Nc6 {[%clk 0:02:40.7]} 6. Bf4 {[%clk 0:02:58.1]} 6... Ne4 {[%clk
0:02:37.7]} 7. e3 {[%clk 0:02:54]} 7... Nxc3 {[%clk 0:02:37.3]} 8. bxc3 {[%clk
0:02:53.4]} 8... g6 {[%clk 0:02:36.5]} 9. Bd3 {[%clk 0:02:43.4]} 9... Bg7 {[%clk
0:02:35.3]} 10. O-O {[%clk 0:02:42.7]} 10... O-O {[%clk 0:02:34.7]} 11. h3
{[%clk 0:02:42.9]} 11... Bf5 {[%clk 0:02:29.5]} 12. Bxf5 {[%clk 0:02:20.8]}
12... gxf5 {[%clk 0:02:28.4]} 13. Qd3 {[%clk 0:02:21.4]} 13... e6 {[%clk
0:02:25.8]} 14. c4 {[%clk 0:02:21.5]} 14... Rc8 {[%clk 0:02:16.9]} 15. c5 {[%clk
0:01:58]} 15... f6 {[%clk 0:02:07.7]} 16. Bd6 {[%clk 0:01:56.6]} 16... Rf7
{[%clk 0:02:07.2]} 17. Rfb1 {[%clk 0:01:50.7]} 17... Na5 {[%clk 0:02:04.4]} 18.
Nd2 {[%clk 0:01:43.6]} 18... b6 {[%clk 0:02:02.5]} 19. Nb3 {[%clk 0:01:38.4]}
19... Nc4 {[%clk 0:02:00.4]} 20. Nd2 {[%clk 0:01:38.5]} 20... Nxd6 {[%clk
0:01:58.6]} 21. cxd6 {[%clk 0:01:37.5]} 21... Qxd6 {[%clk 0:01:57.8]} 22. Rc1
{[%clk 0:01:35]} 22... Rfc7 {[%clk 0:01:56.7]} 23. Nb3 {[%clk 0:01:34]} 23...
Rc4 {[%clk 0:01:54.4]} 24. Qd1 {[%clk 0:01:24.5]} 24... f4 {[%clk 0:01:46.9]}
25. Nd2 {[%clk 0:01:22.4]} 25... Rxc1 {[%clk 0:01:42.2]} 26. Rxc1 {[%clk
0:01:21.8]} 26... Rxc1 {[%clk 0:01:39.5]} 27. Qxc1 {[%clk 0:01:21.7]} 27... fxe3
{[%clk 0:01:39.4]} 28. fxe3 {[%clk 0:01:22.4]} 28... Qd7 {[%clk 0:01:31.1]} 29.
Nf1 {[%clk 0:01:01.8]} 29... Bh6 {[%clk 0:01:26.6]} 30. Qc2 {[%clk 0:00:59.9]}
30... Kg7 {[%clk 0:01:18]} 31. Kf2 {[%clk 0:00:58.9]} 31... f5 {[%clk
0:01:13.2]} 32. g3 {[%clk 0:00:55.6]} 32... Bg5 {[%clk 0:01:10.6]} 33. h4 {[%clk
0:00:54.9]} 33... Bd8 {[%clk 0:01:10.3]} 34. Nd2 {[%clk 0:00:53.8]} 34... Qc7
{[%clk 0:01:08.1]} 35. Nf3 {[%clk 0:00:49.5]} 35... Qxc2+ {[%clk 0:01:07]} 0-1

[Event "Early-Titled-Tuesday-Blitz-November-28-2023"]
[Site "Chess.com"]
[Date "2023.11.28"]
[Round "1"]
[White "falzehope0"]
[Black "MokshAD1603"]
[Result "0-1"]
[WhiteElo "2350"]
[BlackElo "2655"]
[TimeControl "180+1"]
[EndTime "8:05:41 PST"]
[Termination "MokshAD1603 won by checkmate"]

1. d4 {[%clk 0:02:45.4]} 1... Nf6 {[%clk 0:02:45]} 2. e3 {[%clk 0:02:43.6]} 2...
d5 {[%clk 0:02:42.3]} 3. Bd3 {[%clk 0:02:43.7]} 3... c5 {[%clk 0:02:40.9]} 4. c3
{[%clk 0:02:43.7]} 4... Nc6 {[%clk 0:02:41]} 5. f4 {[%clk 0:02:43.8]} 5... Bg4
{[%clk 0:02:40.4]} 6. Ne2 {[%clk 0:02:44.1]} 6... e6 {[%clk 0:02:40.5]} 7. Nd2
{[%clk 0:02:41.9]} 7... Bd6 {[%clk 0:02:38.3]} 8. O-O {[%clk 0:02:41.2]} 8...
O-O {[%clk 0:02:37.8]} 9. Nf3 {[%clk 0:02:40.9]} 9... Ne4 {[%clk 0:02:33.3]} 10.
Bxe4 {[%clk 0:02:40]} 10... dxe4 {[%clk 0:02:34.2]} 11. Ng5 {[%clk 0:02:39.9]}
11... cxd4 {[%clk 0:02:26.7]} 12. exd4 {[%clk 0:02:39.3]} 12... Bc7 {[%clk
0:02:19.9]} 13. Nxe4 {[%clk 0:02:38.3]} 13... Qd5 {[%clk 0:02:20.3]} 14. Qd3
{[%clk 0:02:19.1]} 14... e5 {[%clk 0:02:13.4]} 15. fxe5 {[%clk 0:01:54.3]} 15...
Nxe5 {[%clk 0:02:12.5]} 16. Qc2 {[%clk 0:01:43.5]} 16... Ng6 {[%clk 0:02:10.9]}
17. N2g3 {[%clk 0:01:37.3]} 17... h5 {[%clk 0:02:10]} 18. h3 {[%clk 0:01:29.7]}
18... Bd7 {[%clk 0:02:09.7]} 19. Nh1 {[%clk 0:01:17.7]} 19... Bc6 {[%clk
0:02:07.2]} 20. Nhf2 {[%clk 0:01:11.2]} 20... f5 {[%clk 0:02:05.1]} 21. c4
{[%clk 0:00:53.8]} 21... Qxd4 {[%clk 0:02:04.5]} 22. Ng5 {[%clk 0:00:53]} 22...
Qe5 {[%clk 0:02:01.2]} 23. Nf3 {[%clk 0:00:51.4]} 23... Bxf3 {[%clk 0:01:59.3]}
24. Ng4 {[%clk 0:00:38]} 24... fxg4 {[%clk 0:01:57.2]} 25. Rxf3 {[%clk
0:00:36.9]} 25... gxf3 {[%clk 0:01:55.2]} 26. Be3 {[%clk 0:00:07.8]} 26... Qh2+
{[%clk 0:01:53.1]} 27. Kf1 {[%clk 0:00:02.2]} 27... fxg2+ {[%clk 0:01:53.3]} 28.
Ke2 {[%clk 0:00:02.9]} 28... g1=Q+ {[%clk 0:01:54.2]} 29. Kd3 {[%clk 0:00:03.7]}
29... Rad8+ {[%clk 0:01:50.1]} 30. Kc3 {[%clk 0:00:03.7]} 30... Qxe3+ {[%clk
0:01:49.9]} 31. Kb4 {[%clk 0:00:03.5]} 31... Qxc2 {[%clk 0:01:49.7]} 32. b3
{[%clk 0:00:04.4]} 32... a5+ {[%clk 0:01:48.3]} 33. Ka4 {[%clk 0:00:05.3]} 33...
Qc5 {[%clk 0:01:45.9]} 34. a3 {[%clk 0:00:04.8]} 34... Q5xc4# {[%clk 0:01:45.4]}
0-1

[Event "Early-Titled-Tuesday-Blitz-November-28-2023"]
[Site "Chess.com"]
[Date "2023.11.28"]
[Round "1"]
[White "Agibileg"]
[Black "ViktoriyaTarasova"]
[Result "1-0"]
[WhiteElo "2660"]
[BlackElo "2356"]
[TimeControl "180+1"]
[EndTime "8:05:43 PST"]
[Termination "Agibileg won by resignation"]

1. d4 {[%clk 0:03:00.8]} 1... Nf6 {[%clk 0:02:59.9]} 2. c4 {[%clk 0:03:00.8]}
2... e6 {[%clk 0:03:00.3]} 3. Nc3 {[%clk 0:03:00.7]} 3... Bb4 {[%clk 0:03:00.5]}
4. a3 {[%clk 0:03:00.9]} 4... Bxc3+ {[%clk 0:02:59.9]} 5. bxc3 {[%clk
0:03:01.8]} 5... c5 {[%clk 0:02:59.3]} 6. f3 {[%clk 0:03:00.4]} 6... Nc6 {[%clk
0:02:55.7]} 7. e4 {[%clk 0:02:59.1]} 7... d6 {[%clk 0:02:46.5]} 8. Kf2 {[%clk
0:02:57.4]} 8... O-O {[%clk 0:02:45.7]} 9. g4 {[%clk 0:02:49.9]} 9... b6 {[%clk
0:02:44.9]} 10. h4 {[%clk 0:02:47.4]} 10... Ba6 {[%clk 0:02:42.9]} 11. h5 {[%clk
0:02:46.8]} 11... h6 {[%clk 0:02:12]} 12. Nh3 {[%clk 0:02:36.6]} 12... Nh7
{[%clk 0:02:10.7]} 13. Ra2 {[%clk 0:02:13.5]} 13... Na5 {[%clk 0:02:08.4]} 14.
Kg1 {[%clk 0:02:08.7]} 14... Bxc4 {[%clk 0:02:03.7]} 15. Rg2 {[%clk 0:02:06.7]}
15... Bxf1 {[%clk 0:01:58.7]} 16. Qxf1 {[%clk 0:02:06.5]} 16... f6 {[%clk
0:01:58.3]} 17. Nf4 {[%clk 0:02:05.5]} 17... Qd7 {[%clk 0:01:53.1]} 18. d5
{[%clk 0:01:56.8]} 18... Ng5 {[%clk 0:01:47.6]} 19. Ng6 {[%clk 0:01:43.4]} 19...
Rfe8 {[%clk 0:01:46.7]} 20. f4 {[%clk 0:01:39.8]} 20... Nxe4 {[%clk 0:01:42.1]}
21. g5 {[%clk 0:01:39.6]} 21... fxg5 {[%clk 0:01:09.5]} 22. fxg5 {[%clk
0:01:37.9]} 22... hxg5 {[%clk 0:01:06]} 23. h6 {[%clk 0:01:37]} 23... gxh6
{[%clk 0:00:32.4]} 24. Rxh6 {[%clk 0:01:37.9]} 24... Kg7 {[%clk 0:00:14.8]} 25.
Rgh2 {[%clk 0:01:34.5]} 25... Nf6 {[%clk 0:00:15.1]} 26. Bxg5 {[%clk 0:01:31.7]}
26... Rf8 {[%clk 0:00:09.2]} 27. Nxf8 {[%clk 0:01:31.1]} 27... Rxf8 {[%clk
0:00:09.3]} 28. Bxf6+ {[%clk 0:01:25.2]} 1-0

[Event "Early-Titled-Tuesday-Blitz-November-28-2023"]
[Site "Chess.com"]
[Date "2023.11.28"]
[Round "1"]
[White "gshwbedhkhd"]
[Black "Thormento16"]
[Result "0-1"]
[WhiteElo "2627"]
[BlackElo "2352"]
[TimeControl "180+1"]
[EndTime "8:05:43 PST"]
[Termination "Thormento16 won by resignation"]

1. f4 {[%clk 0:03:00.9]} 1... d5 {[%clk 0:02:59.4]} 2. Nf3 {[%clk 0:03:00.8]}
2... Nf6 {[%clk 0:03:00]} 3. g3 {[%clk 0:03:01.2]} 3... g6 {[%clk 0:03:00.6]} 4.
Bg2 {[%clk 0:03:01.6]} 4... Bg7 {[%clk 0:03:01.3]} 5. O-O {[%clk 0:03:01.8]}
5... O-O {[%clk 0:03:02]} 6. d3 {[%clk 0:03:02.2]} 6... c6 {[%clk 0:03:01.4]} 7.
Qe1 {[%clk 0:03:02.5]} 7... b5 {[%clk 0:02:58.8]} 8. e4 {[%clk 0:02:55]} 8...
dxe4 {[%clk 0:02:38.6]} 9. dxe4 {[%clk 0:02:52.7]} 9... Nbd7 {[%clk 0:02:39]}
10. a4 {[%clk 0:02:49.9]} 10... e5 {[%clk 0:02:35.3]} 11. axb5 {[%clk
0:02:44.5]} 11... cxb5 {[%clk 0:02:36.2]} 12. Nc3 {[%clk 0:02:37.9]} 12... b4
{[%clk 0:02:31.6]} 13. Nd1 {[%clk 0:02:32.6]} 13... a5 {[%clk 0:02:25.5]} 14. f5
{[%clk 0:02:31.3]} 14... Bb7 {[%clk 0:02:25]} 15. Nf2 {[%clk 0:02:23.1]} 15...
Nc5 {[%clk 0:02:20.4]} 16. Nxe5 {[%clk 0:02:10.4]} 16... Re8 {[%clk 0:02:15.2]}
17. Bf4 {[%clk 0:02:01.2]} 17... g5 {[%clk 0:02:11.3]} 18. Rd1 {[%clk 0:01:56]}
18... Qb6 {[%clk 0:02:05.7]} 19. Nc4 {[%clk 0:01:53.1]} 19... Qa6 {[%clk
0:02:04.5]} 20. Nd6 {[%clk 0:01:51.9]} 20... gxf4 {[%clk 0:02:03.9]} 21. Nxe8
{[%clk 0:01:50.9]} 21... Rxe8 {[%clk 0:02:04.2]} 22. e5 {[%clk 0:01:42.9]} 22...
Bxg2 {[%clk 0:02:01]} 23. Kxg2 {[%clk 0:01:41.7]} 23... Nfd7 {[%clk 0:01:53.6]}
24. gxf4 {[%clk 0:01:27.3]} 24... Kh8 {[%clk 0:01:53.9]} 25. Ng4 {[%clk
0:01:17.2]} 25... Rg8 {[%clk 0:01:49.9]} 26. Qh4 {[%clk 0:01:08.7]} 26... Qe2+
{[%clk 0:01:36.5]} 27. Kh3 {[%clk 0:01:06.3]} 27... Ne4 {[%clk 0:01:28.5]} 28.
Rde1 {[%clk 0:00:58]} 28... Qxc2 {[%clk 0:01:26.2]} 29. Qe7 {[%clk 0:00:47.5]}
29... Qd3+ {[%clk 0:01:22.3]} 30. Kh4 {[%clk 0:00:43.8]} 30... Bf8 {[%clk
0:01:15.9]} 31. Qxf7 {[%clk 0:00:40.3]} 31... Rg7 {[%clk 0:01:16.5]} 32. Qe8
{[%clk 0:00:37]} 32... Rxg4+ {[%clk 0:01:12.4]} 33. Kxg4 {[%clk 0:00:36.5]}
33... Nef6+ {[%clk 0:01:12.1]} 34. exf6 {[%clk 0:00:34.9]} 34... Nxf6+ {[%clk
0:01:13]} 35. Kh4 {[%clk 0:00:34.4]} 35... Nxe8 {[%clk 0:01:11.4]} 0-1

[Event "Early-Titled-Tuesday-Blitz-November-28-2023"]
[Site "Chess.com"]
[Date "2023.11.28"]
[Round "1"]
[White "DonCiao"]
[Black "Pingah9"]
[Result "0-1"]
[WhiteElo "2117"]
[BlackElo "2548"]
[TimeControl "180+1"]
[EndTime "8:05:46 PST"]
[Termination "Pingah9 won by resignation"]

1. c4 {[%clk 0:02:56.4]} 1... e5 {[%clk 0:02:59.2]} 2. g3 {[%clk 0:02:55.8]}
2... Nc6 {[%clk 0:02:58.7]} 3. Nc3 {[%clk 0:02:54.8]} 3... g6 {[%clk 0:02:58.8]}
4. Bg2 {[%clk 0:02:54.5]} 4... Bg7 {[%clk 0:02:58.7]} 5. d3 {[%clk 0:02:54.5]}
5... d6 {[%clk 0:02:58.7]} 6. e4 {[%clk 0:02:54.3]} 6... h6 {[%clk 0:02:58.6]}
7. Nge2 {[%clk 0:02:54.1]} 7... Nge7 {[%clk 0:02:58.8]} 8. O-O {[%clk
0:02:53.5]} 8... O-O {[%clk 0:02:58.9]} 9. Nd5 {[%clk 0:02:48.5]} 9... a5 {[%clk
0:02:56.4]} 10. Be3 {[%clk 0:02:47.9]} 10... Nd4 {[%clk 0:02:52.8]} 11. Nxd4
{[%clk 0:02:41.2]} 11... exd4 {[%clk 0:02:53.7]} 12. Bd2 {[%clk 0:02:39.9]}
12... c6 {[%clk 0:02:42.4]} 13. Nf4 {[%clk 0:02:35.6]} 13... a4 {[%clk
0:02:34.4]} 14. Bb4 {[%clk 0:02:29.3]} 14... c5 {[%clk 0:02:27.7]} 15. Bd2
{[%clk 0:02:28.7]} 15... Nc6 {[%clk 0:02:26.7]} 16. Nd5 {[%clk 0:02:27.9]} 16...
Be6 {[%clk 0:02:26.3]} 17. f4 {[%clk 0:02:24.3]} 17... a3 {[%clk 0:02:22.3]} 18.
b3 {[%clk 0:02:22.6]} 18... f5 {[%clk 0:02:01.4]} 19. exf5 {[%clk 0:01:58]}
19... Bxf5 {[%clk 0:02:02.3]} 20. Qf3 {[%clk 0:01:57.8]} 20... Kh7 {[%clk
0:01:56.4]} 21. Rae1 {[%clk 0:01:54.5]} 21... Rf7 {[%clk 0:01:50.1]} 22. g4
{[%clk 0:01:53]} 22... Bd7 {[%clk 0:01:48.5]} 23. Qg3 {[%clk 0:01:42.8]} 23...
Qf8 {[%clk 0:01:43.1]} 24. Be4 {[%clk 0:01:41.7]} 24... Re8 {[%clk 0:01:38.6]}
25. f5 {[%clk 0:01:36.4]} 25... gxf5 {[%clk 0:01:38.1]} 26. gxf5 {[%clk
0:01:36.1]} 26... Bf6 {[%clk 0:01:12.6]} 27. Qg6+ {[%clk 0:01:32.5]} 27... Kh8
{[%clk 0:01:12]} 28. Bxh6 {[%clk 0:01:32]} 28... Qg8 {[%clk 0:01:11.7]} 29. Nxf6
{[%clk 0:01:28.6]} 29... Rxf6 {[%clk 0:01:10.8]} 30. Qxg8+ {[%clk 0:01:08.4]}
30... Rxg8+ {[%clk 0:01:11.7]} 31. Kh1 {[%clk 0:01:08.7]} 31... Rxh6 {[%clk
0:01:11.2]} 32. f6 {[%clk 0:01:08.8]} 32... Ne5 {[%clk 0:01:07.4]} 33. Bd5
{[%clk 0:01:04.3]} 33... Rf8 {[%clk 0:01:06.6]} 34. f7 {[%clk 0:01:01.4]} 34...
Bc6 {[%clk 0:01:04.1]} 35. Rxe5 {[%clk 0:00:58.9]} 35... dxe5 {[%clk 0:01:02.8]}
0-1

[Event "Early-Titled-Tuesday-Blitz-November-28-2023"]
[Site "Chess.com"]
[Date "2023.11.28"]
[Round "1"]
[White "Savagelittlemole"]
[Black "KuzubovYuriy"]
[Result "0-1"]
[WhiteElo "2494"]
[BlackElo "2880"]
[TimeControl "180+1"]
[EndTime "8:05:49 PST"]
[Termination "KuzubovYuriy won by resignation"]

1. e4 {[%clk 0:03:00.9]} 1... c5 {[%clk 0:02:59.5]} 2. Ne2 {[%clk 0:03:00.5]}
2... Nc6 {[%clk 0:02:59.3]} 3. g3 {[%clk 0:03:00.4]} 3... d5 {[%clk 0:02:56.7]}
4. Bg2 {[%clk 0:02:59.5]} 4... dxe4 {[%clk 0:02:54.5]} 5. Nbc3 {[%clk
0:02:58.4]} 5... Nf6 {[%clk 0:02:46.6]} 6. Nxe4 {[%clk 0:02:57.7]} 6... Nxe4
{[%clk 0:02:46.4]} 7. Bxe4 {[%clk 0:02:58.6]} 7... g6 {[%clk 0:02:45.4]} 8. O-O
{[%clk 0:02:57.6]} 8... Bg7 {[%clk 0:02:45.5]} 9. Rb1 {[%clk 0:02:41.8]} 9...
O-O {[%clk 0:02:42.3]} 10. b3 {[%clk 0:02:40.5]} 10... Qd6 {[%clk 0:02:28.9]}
11. Bg2 {[%clk 0:02:33.7]} 11... Be6 {[%clk 0:01:59]} 12. d3 {[%clk 0:02:21.5]}
12... Bd5 {[%clk 0:01:54.6]} 13. Bf4 {[%clk 0:02:13.9]} 13... e5 {[%clk
0:01:53.4]} 14. Be3 {[%clk 0:02:03.8]} 14... Bxg2 {[%clk 0:01:50.6]} 15. Kxg2
{[%clk 0:02:04.7]} 15... f5 {[%clk 0:01:50]} 16. f4 {[%clk 0:02:00.2]} 16...
Rae8 {[%clk 0:01:46.8]} 17. fxe5 {[%clk 0:01:50]} 17... Nxe5 {[%clk 0:01:46.8]}
18. Bf4 {[%clk 0:01:36]} 18... Qc6+ {[%clk 0:01:39.3]} 19. Kh3 {[%clk
0:01:36.1]} 19... Ng4 {[%clk 0:01:34.4]} 20. Ng1 {[%clk 0:01:19.9]} 20... h6
{[%clk 0:01:18.1]} 21. Qf3 {[%clk 0:01:06.9]} 21... Qd7 {[%clk 0:01:11.7]} 22.
Kg2 {[%clk 0:00:59.3]} 22... g5 {[%clk 0:01:12]} 23. Bd2 {[%clk 0:00:57.5]}
23... Ne5 {[%clk 0:01:11.4]} 24. Qh5 {[%clk 0:00:32]} 24... Qc6+ {[%clk
0:01:09.2]} 25. Nf3 {[%clk 0:00:13]} 25... g4 {[%clk 0:01:09]} 0-1